bitfinex/quotes_BTCUSD_20230118
["timestamp","ask_amount","ask_price","bid_price","bid_amount"]
[1674059346843,0.00452436,20699.0,20696.0,0.321673]
[1674059347085,0.00452436,20699.0,20697.0,1.626729]
[1674059347342,0.00452436,20699.0,20698.0,0.333366]
[1674059347605,0.00452436,20699.0,20698.0,0.920766]
[1674059347848,0.00452436,20699.0,20698.0,1.40460406]
[1674059348122,0.00452436,20699.0,20698.0,1.55460406]
[1674059348619,0.00491199,20700.0,20699.0,0.4374]
[1674059348874,0.00491199,20700.0,20699.0,0.915113]
[1674059349125,0.00491199,20700.0,20699.0,0.627713]
[1674059350141,0.00491199,20700.0,20699.0,0.915113]
[1674059350408,0.00491199,20700.0,20699.0,0.94394413]
[1674059350653,0.00491199,20700.0,20699.0,1.25802026]
[1674059350908,0.00110419,20707.0,20699.0,2.29955026]
[1674059351150,0.00110419,20707.0,20706.0,0.2873]
[1674059351408,0.00012549,20707.0,20706.0,1.22956426]
[1674059351650,0.00012549,20707.0,20706.0,0.916116]
[1674059351899,0.00012549,20707.0,20706.0,1.056416]
[1674059352147,1.1148,20719.0,20706.0,1.39891981]
[1674059352395,0.00096107,20717.0,20710.0,1.0]
[1674059352639,0.15096107,20717.0,20711.0,0.6348017]
[1674059352897,0.15,20717.0,20711.0,0.3]
[1674059353146,0.00097309,20717.0,20711.0,0.3]
[1674059353390,0.04702905,20716.0,20707.0,0.15012465]
[1674059353632,0.182906,20715.0,20707.0,0.00012465]
[1674059353881,1.082775,20714.0,20707.0,0.00012465]
[1674059354125,0.042606,20713.0,20707.0,0.00012465]
[1674059354384,1.588775,20712.0,20707.0,0.00012465]
[1674059354626,0.24147,20708.0,20697.0,0.34593241]
[1674059354884,0.24147,20708.0,20695.0,0.15]
[1674059354885,0.1403,20703.0,20695.0,0.15]
[1674059355158,0.042606,20702.0,20695.0,0.15]
[1674059355406,0.623337,20703.0,20691.0,1.9759]
[1674059355728,0.96930184,20703.0,20691.0,1.9759]
[1674059355987,0.38184,20701.0,20691.0,1.0]
[1674059356297,0.525704,20700.0,20691.0,1.0]
[1674059356560,0.623372,20701.0,20691.0,1.0]
[1674059356831,0.1403,20699.0,20691.0,1.0]
[1674059357368,0.1403,20699.0,20688.0,1.0]
[1674059357829,0.15,20698.0,20688.0,1.0]
[1674059357833,0.15,20698.0,20685.0,0.03021446]
[1674059358088,0.38857084,20697.0,20685.0,0.9959]
[1674059358360,0.49596484,20698.0,20685.0,1.02611446]
[1674059358640,0.15,20698.0,20688.0,0.1394]
[1674059358910,0.15,20698.0,20692.0,1.0]
[1674059359158,0.00099479,20699.0,20695.0,1.0]
[1674059359433,0.00099479,20699.0,20696.0,0.632816]
[1674059359702,0.0001,20700.0,20693.0,0.15]
[1674059359703,0.483208,20700.0,20693.0,0.15]
[1674059359957,0.1403,20697.0,20686.0,0.32036135]
[1674059360228,0.483212,20695.0,20685.0,0.15]
[1674059360763,1.931832,20699.0,20687.0,1.0]
[1674059361011,0.0009843,20695.0,20690.0,1.0]
[1674059361272,0.26319,20699.0,20691.0,0.34159]
[1674059361543,0.0001,20700.0,20692.0,0.332325]
[1674059361836,0.0001,20700.0,20692.0,0.3]
[1674059362064,0.0001,20700.0,20691.0,0.63907129]
[1674059362065,0.00049157,20699.0,20691.0,0.63907129]
[1674059362322,0.0001,20700.0,20691.0,0.45]
[1674059362581,0.1403,20696.0,20692.0,0.15]
[1674059362900,0.1403,20694.0,20685.0,0.33861108]
[1674059363183,0.483291,20692.0,20682.0,0.10823672]
[1674059363474,0.38095,20691.0,20682.0,0.10823672]
[1674059363742,0.483291,20692.0,20682.0,0.10823672]
[1674059364002,0.483312,20691.0,20682.0,0.10823672]
[1674059364511,0.633322,20691.0,20682.0,0.10823672]
[1674059364765,0.15,20691.0,20682.0,0.10823672]
[1674059365024,0.15,20691.0,20683.0,0.320561]
[1674059365285,0.15,20691.0,20682.0,0.10823672]
[1674059365286,0.1403,20690.0,20682.0,0.10823672]
[1674059365560,0.1403,20687.0,20682.0,0.10823672]
[1674059365828,0.1403,20684.0,20682.0,0.10411986]
[1674059366093,0.02782662,20684.0,20682.0,0.09203486]
[1674059366626,0.2893,20686.0,20682.0,0.09203486]
[1674059366899,0.15,20686.0,20682.0,0.09203486]
[1674059367176,0.00059077,20687.0,20683.0,0.305136]
[1674059367447,0.11363,20690.0,20682.0,0.09203486]
[1674059367983,0.2903,20691.0,20682.0,0.09203486]
[1674059367984,0.15,20689.0,20682.0,0.09203486]
[1674059368286,0.633361,20689.0,20682.0,0.09203486]
[1674059368579,0.18718162,20688.0,20682.0,0.08738486]
[1674059369091,0.67056962,20688.0,20682.0,0.08738486]
[1674059369349,0.1403,20687.0,20682.0,0.08738486]
[1674059369632,0.96686,20686.0,20682.0,0.08273486]
[1674059369912,0.15,20685.0,20682.0,0.07808486]
[1674059370495,0.96686,20686.0,20682.0,0.07343486]
[1674059370496,0.48343,20686.0,20682.0,0.07343486]
[1674059370757,0.63343,20686.0,20682.0,0.07343486]
[1674059371078,0.15,20685.0,20675.0,1.03204193]
[1674059371340,0.1403,20683.0,20676.0,0.03204193]
[1674059371621,0.1403,20680.0,20673.0,0.01856554]
[1674059372193,0.15,20681.0,20673.0,0.50227554]
[1674059372693,0.00099059,20680.0,20672.0,0.45230054]
[1674059372966,0.00099059,20680.0,20670.0,0.51582493]
[1674059373232,0.00099059,20680.0,20670.0,0.483783]
[1674059373233,0.15,20679.0,20670.0,0.483783]
[1674059373543,0.15,20679.0,20667.0,0.17925788]
[1674059373544,0.633598,20679.0,20667.0,0.02925788]
[1674059373822,0.45613542,20678.0,20667.0,0.02925788]
[1674059374353,0.01793,20677.0,20667.0,0.02925788]
[1674059374617,0.60613542,20678.0,20667.0,0.02925788]
[1674059374874,0.48903542,20678.0,20667.0,0.02925788]
[1674059375151,1.95,20678.0,20667.0,1.06129981]
[1674059375408,0.15,20677.0,20667.0,1.06129981]
[1674059375661,0.15,20677.0,20667.0,1.02925788]
[1674059375918,0.633631,20677.0,20667.0,0.02925788]
[1674059376188,0.33903542,20676.0,20667.0,0.02925788]
[1674059376461,0.967422,20674.0,20667.0,0.02925788]
[1674059376728,0.483715,20674.0,20667.0,0.02925788]
[1674059376991,0.15,20675.0,20667.0,0.02925788]
[1674059377250,0.00099543,20674.0,20667.0,0.02925788]
[1674059377776,0.00099543,20674.0,20658.0,1.0]
[1674059377777,0.48471043,20674.0,20658.0,1.0]
[1674059378034,0.49347428,20673.0,20658.0,1.0]
[1674059378293,0.34347428,20672.0,20658.0,1.0]
[1674059378555,2.12672528,20672.0,20659.0,0.484028]
[1674059378846,0.49347428,20671.0,20659.0,0.484028]
[1674059379079,0.49347428,20671.0,20658.0,0.484057]
[1674059379080,0.70338428,20670.0,20658.0,0.484057]
[1674059379360,0.82731128,20669.0,20659.0,0.484037]
[1674059379638,0.82731128,20669.0,20655.0,0.02319191]
[1674059379639,0.24197,20664.0,20655.0,0.02319191]
[1674059379911,0.483938,20664.0,20655.0,0.02319191]
[1674059380354,0.82741228,20664.0,20655.0,0.02319191]
[1674059380356,0.967871,20664.0,20655.0,0.02319191]
[1674059380659,2.26834029,20664.0,20655.0,0.02319191]
[1674059380918,1.78440229,20664.0,20655.0,0.02319191]
[1674059381187,0.15,20663.0,20655.0,0.02319191]
[1674059381476,0.15,20663.0,20655.0,1.56334047]
[1674059381736,0.00096929,20664.0,20656.0,0.326112]
[1674059382002,0.00096929,20664.0,20657.0,0.334508]
[1674059382264,0.00096929,20664.0,20655.0,0.02319191]
[1674059382776,6e-05,20663.0,20655.0,0.33403491]
[1674059383047,6e-05,20663.0,20656.0,0.32375]
[1674059383307,6e-05,20663.0,20657.0,0.32412]
[1674059383563,6e-05,20663.0,20658.0,0.626074]
[1674059383815,6e-05,20663.0,20658.0,0.3]
[1674059384131,6e-05,20663.0,20655.0,0.02319191]
[1674059384356,0.48403,20663.0,20655.0,0.02319191]
[1674059384655,0.15,20662.0,20655.0,0.02319191]
[1674059385760,0.15,20662.0,20655.0,0.05121373]
[1674059386025,0.15,20662.0,20655.0,0.02319191]
[1674059386544,1.11806528,20662.0,20655.0,0.02319191]
[1674059386817,0.15,20661.0,20655.0,0.02319191]
[1674059387083,0.968088,20660.0,20655.0,0.02319191]
[1674059387337,0.1399,20659.0,20655.0,0.02319191]
[1674059387595,0.634078,20658.0,20655.0,0.02319191]
[1674059388712,0.38267,20656.0,20649.0,0.01856554]
[1674059388973,0.484161,20655.0,20649.0,0.01856554]
[1674059389542,1.78273742,20655.0,20649.0,0.01856554]
[1674059389835,0.00097642,20655.0,20649.0,0.01856554]
[1674059390098,0.15,20657.0,20655.0,0.76156969]
[1674059390903,0.752323,20660.0,20656.0,0.3]
[1674059390904,0.15,20660.0,20656.0,0.3]
[1674059391171,0.00098975,20660.0,20657.0,0.317759]
[1674059391435,0.00098975,20660.0,20658.0,0.3]
[1674059391692,0.00098975,20660.0,20656.0,0.3]
[1674059391956,0.15,20664.0,20657.0,0.31859]
[1674059392232,0.00095651,20663.0,20658.0,0.627735]
[1674059392492,0.00095651,20663.0,20658.0,0.3]
[1674059393261,0.15,20666.0,20659.0,0.324488]
[1674059393546,0.63488008,20666.0,20660.0,0.3]
[1674059393825,0.63489008,20666.0,20656.0,0.15]
[1674059394086,0.63489008,20666.0,20656.0,0.5906]
[1674059394087,6e-05,20663.0,20656.0,0.5906]
[1674059394366,6e-05,20663.0,20658.0,1.0]
[1674059394623,6e-05,20663.0,20659.0,0.923445]
[1674059395133,6e-05,20663.0,20661.0,1.14]
[1674059395406,0.00430805,20671.0,20663.0,6.264e-05]
[1674059395668,0.00526384,20671.0,20666.0,1.0]
[1674059395922,0.00526384,20671.0,20667.0,0.633394]
[1674059396199,0.00430805,20671.0,20667.0,0.3]
[1674059396963,0.00430805,20671.0,20668.0,0.311296]
[1674059397218,0.00430805,20671.0,20670.0,0.1406]
[1674059397520,0.00097297,20674.0,20670.0,0.478236]
[1674059397742,0.15440076,20680.0,20671.0,0.76835]
[1674059397987,0.00096525,20678.0,20672.0,0.65179427]
[1674059398243,0.00096525,20678.0,20673.0,0.3]
[1674059399272,0.00096525,20678.0,20667.0,0.15]
[1674059399273,0.00096525,20678.0,20672.0,0.3]
[1674059399535,0.77488325,20678.0,20666.0,1.0]
[1674059399791,1.16538658,20678.0,20663.0,6.264e-05]
[1674059400101,0.1406,20674.0,20663.0,6.264e-05]
[1674059400333,0.483776,20671.0,20663.0,6.264e-05]
[1674059400592,0.1406,20669.0,20663.0,6.264e-05]
[1674059400860,0.967716,20668.0,20663.0,6.264e-05]
[1674059401122,2.173916,20668.0,20663.0,6.264e-05]
[1674059401397,2.17488318,20668.0,20663.0,6.264e-05]
[1674059401712,0.15,20667.0,20663.0,6.264e-05]
[1674059401961,0.1406,20664.0,20663.0,2.64e-06]
[1674059402485,1.108466,20664.0,20663.0,2.64e-06]
[1674059404151,0.483933,20664.0,20663.0,2.64e-06]
[1674059404956,0.624533,20664.0,20663.0,2.64e-06]
[1674059405535,0.483933,20664.0,20663.0,2.64e-06]
[1674059405816,0.483931,20665.0,20663.0,2.64e-06]
[1674059406082,0.967861,20665.0,20663.0,2.64e-06]
[1674059406629,0.15,20664.0,20663.0,2.64e-06]
[1674059407195,0.39199,20664.0,20663.0,2.64e-06]
[1674059407456,1.36061763,20664.0,20663.0,2.64e-06]
[1674059409127,0.15,20664.0,20663.0,2.64e-06]
[1674059409933,1.71848756,20664.0,20663.0,2.64e-06]
[1674059409936,1.83340495,20664.0,20663.0,2.64e-06]
[1674059410200,1.83340495,20664.0,20649.0,0.01875554]
[1674059410201,6e-05,20662.0,20649.0,0.01875554]
[1674059410455,0.1406,20655.0,20649.0,0.01856554]
[1674059410718,0.24211,20652.0,20649.0,0.01856554]
[1674059411190,1.973176,20654.0,20649.0,0.01856554]
[1674059411193,1.2469,20654.0,20649.0,0.01856554]
[1674059411444,1.731083,20654.0,20649.0,0.01856554]
[1674059411708,1.24789435,20654.0,20649.0,0.01856554]
[1674059411964,0.00099435,20654.0,20649.0,0.01856554]
[1674059412227,1.2071,20660.0,20650.0,0.02925607]
[1674059412490,1.2071,20660.0,20654.0,0.01967629]
[1674059412760,6e-05,20662.0,20654.0,0.01967629]
[1674059413305,6e-05,20662.0,20655.0,1.0]
[1674059413603,6e-05,20662.0,20656.0,0.63175]
[1674059413915,6e-05,20662.0,20657.0,0.341117]
[1674059414171,6e-05,20662.0,20659.0,1.0]
[1674059414445,6e-05,20662.0,20660.0,0.609159]
[1674059414706,0.34690044,20670.0,20661.0,0.332656]
[1674059414962,0.34690044,20670.0,20660.0,0.3]
[1674059414963,0.483784,20671.0,20662.0,0.619827]
[1674059415408,0.483784,20671.0,20663.0,0.3]
[1674059415412,0.483754,20672.0,20663.0,0.3]
[1674059416389,0.00440076,20673.0,20668.0,1.0]
[1674059416663,0.00440076,20673.0,20669.0,0.638226]
[1674059416946,0.00440076,20673.0,20670.0,0.33722]
[1674059417213,0.00440076,20673.0,20672.0,1.0]
[1674059417474,0.15,20676.0,20672.0,2.565723]
[1674059417795,0.00440076,20680.0,20675.0,1.0]
[1674059418080,0.00440076,20680.0,20676.0,0.626847]
[1674059418339,0.00440076,20680.0,20677.0,0.310036]
[1674059418628,0.00440076,20680.0,20676.0,0.3]
[1674059419133,0.00440076,20680.0,20677.0,0.328906]
[1674059419410,0.00440076,20680.0,20678.0,0.627198]
[1674059419671,0.00440076,20680.0,20679.0,0.60068]
[1674059419936,0.00440076,20680.0,20679.0,0.90068]
[1674059420231,0.00440076,20680.0,20675.0,1.0]
[1674059420515,0.00440076,20680.0,20677.0,0.15]
[1674059420781,0.00440076,20680.0,20678.0,0.305221]
[1674059421034,0.00440076,20680.0,20679.0,1.61828]
[1674059421300,0.11485212,20694.0,20679.0,2.64568]
[1674059421595,0.69402471,20695.0,20689.0,0.1394]
[1674059421596,0.00491199,20695.0,20689.0,0.1394]
[1674059421873,0.00491199,20695.0,20691.0,0.2874]
[1674059422144,0.00491199,20695.0,20692.0,0.620611]
[1674059422406,0.00491199,20695.0,20693.0,0.334087]
[1674059422677,0.00491199,20695.0,20690.0,1.0]
[1674059422678,0.05207199,20695.0,20690.0,1.0]
[1674059422953,0.05207199,20695.0,20684.0,1.0]
[1674059423245,0.96710067,20694.0,20687.0,1.0]
[1674059423504,0.00491199,20695.0,20690.0,1.0]
[1674059423756,0.11939199,20695.0,20691.0,0.31757]
[1674059424022,0.00479199,20695.0,20690.0,1.0]
[1674059424661,0.00479199,20695.0,20691.0,0.3]
[1674059424999,0.00479199,20695.0,20693.0,1.0]
[1674059425229,0.00479199,20695.0,20685.0,1.0]
[1674059425698,0.00479199,20695.0,20688.0,0.15]
[1674059425926,0.00479199,20695.0,20688.0,1.0]
[1674059426354,0.00479199,20695.0,20685.0,1.0]
[1674059426586,0.00479199,20695.0,20686.0,1.27531885]
[1674059426818,0.00479199,20695.0,20689.0,1.0]
[1674059427087,0.00479199,20695.0,20690.0,0.3]
[1674059427550,0.00479199,20695.0,20692.0,1.0]
[1674059427787,0.00479199,20695.0,20693.0,0.3]
[1674059429836,0.00479199,20695.0,20691.0,0.15]
[1674059430734,0.00479199,20695.0,20694.0,0.15]
[1674059431223,0.05195199,20695.0,20694.0,0.15]
[1674059431456,0.05195199,20695.0,20684.0,1.0]
[1674059431457,0.31565134,20687.0,20684.0,1.0]
[1674059431724,0.31565134,20687.0,20682.0,0.15]
[1674059432220,0.31565134,20687.0,20682.0,1.15]
[1674059432704,0.31565134,20687.0,20683.0,0.331865]
[1674059432912,0.31565134,20687.0,20684.0,0.15]
[1674059433585,0.31565134,20687.0,20686.0,0.15]
[1674059434026,0.31565134,20687.0,20682.0,1.15]
[1674059434242,0.31565134,20687.0,20682.0,1.0]
[1674059434962,0.31565134,20687.0,20682.0,1.2874]
[1674059435185,0.31565134,20687.0,20685.0,1.2874]
[1674059435414,0.31565134,20687.0,20686.0,0.342387]
[1674059435637,0.31565134,20687.0,20686.0,0.642387]
[1674059436777,0.31565134,20687.0,20686.0,0.929787]
[1674059436997,0.31565134,20687.0,20686.0,0.96032782]
[1674059437356,0.31565134,20687.0,20686.0,0.929787]
[1674059437615,0.31565134,20687.0,20686.0,1.2755079]
[1674059438421,0.31565134,20687.0,20686.0,0.929787]
[1674059438950,0.18139386,20689.0,20686.0,1.92754872]
[1674059439217,0.00391283,20691.0,20688.0,2.83286]
[1674059439498,4.85810856,20695.0,20690.0,0.9089]
[1674059439807,0.00479199,20695.0,20692.0,0.2874]
[1674059440070,0.00479199,20695.0,20691.0,1.14300751]
[1674059440071,0.00479199,20695.0,20693.0,0.316371]
[1674059440347,0.00479199,20695.0,20694.0,0.32586]
[1674059440656,0.00479199,20695.0,20691.0,1.0]
[1674059440927,0.00479199,20695.0,20691.0,1.2874]
[1674059441203,0.00479199,20695.0,20694.0,1.0]
[1674059441497,0.00879199,20695.0,20694.0,1.62063]
[1674059441769,0.10459233,20701.0,20694.0,1.62063]
[1674059442040,0.00451367,20704.0,20698.0,1.0]
[1674059442348,0.00451367,20704.0,20699.0,0.9748456]
[1674059442569,0.00451367,20704.0,20699.0,0.3]
[1674059443107,0.00451367,20704.0,20695.0,1.3431816]
[1674059443108,0.15,20701.0,20696.0,0.3]
[1674059443368,0.15,20701.0,20695.0,1.0]
[1674059443920,0.15,20701.0,20699.0,0.046]
[1674059444234,0.15,20701.0,20698.0,1.2874]
[1674059444502,0.00451367,20704.0,20699.0,0.621571]
[1674059444762,0.004,20701.0,20699.0,1.3]
[1674059445096,0.13451367,20705.0,20700.0,0.350954]
[1674059445335,0.13451367,20705.0,20699.0,1.3]
[1674059445336,0.05116,20701.0,20699.0,0.3]
[1674059445585,0.04716,20701.0,20699.0,0.3]
[1674059445839,0.05116,20701.0,20699.0,0.046]
[1674059446098,0.534238,20701.0,20699.0,0.046]
[1674059446365,1.017306,20701.0,20699.0,0.046]
[1674059446637,1.017306,20701.0,20691.0,0.31092418]
[1674059446638,1.013306,20701.0,20691.0,0.31092418]
[1674059446911,1.013306,20701.0,20690.0,1.15]
[1674059446912,0.970146,20701.0,20699.0,0.043]
[1674059447158,0.970146,20701.0,20693.0,1.0]
[1674059447159,0.966146,20701.0,20693.0,1.0]
[1674059447427,0.004,20701.0,20699.0,0.043]
[1674059447856,0.482997,20705.0,20696.0,1.0]
[1674059447857,0.596107,20705.0,20696.0,1.0]
[1674059448081,0.004,20701.0,20696.0,1.0]
[1674059448304,0.15,20701.0,20697.0,0.3]
[1674059448522,0.154,20701.0,20699.0,0.043]
[1674059448745,0.15,20701.0,20699.0,1.0]
[1674059448992,0.15,20701.0,20700.0,0.3]
[1674059449796,0.15592986,20708.0,20700.0,0.629586]
[1674059450057,0.15592986,20708.0,20703.0,1.0]
[1674059450355,0.15,20704.0,20703.0,1.0]
[1674059450904,0.15,20704.0,20703.0,1.820621]
[1674059451211,0.15,20704.0,20703.0,1.996021]
[1674059451486,0.15,20706.0,20703.0,1.620621]
[1674059451743,0.15,20706.0,20704.0,0.631109]
[1674059451998,0.15592986,20708.0,20703.0,1.088]
[1674059452536,0.00592986,20708.0,20703.0,1.088]
[1674059452807,0.00592986,20708.0,20703.0,0.088]
[1674059453065,0.00592986,20708.0,20701.0,0.4374]
[1674059453066,0.00592986,20708.0,20704.0,1.0]
[1674059453337,0.00592986,20708.0,20703.0,0.088]
[1674059453627,0.48871714,20708.0,20697.0,1.0]
[1674059453883,0.48871714,20708.0,20698.0,0.15]
[1674059454138,0.48871714,20708.0,20700.0,1.0]
[1674059454400,0.48971714,20708.0,20700.0,1.15]
[1674059454658,0.48871714,20708.0,20700.0,1.15]
[1674059454954,0.48871714,20708.0,20701.0,0.3]
[1674059455216,0.00581014,20708.0,20701.0,0.3]
[1674059455510,0.00681014,20708.0,20701.0,0.3]
[1674059455766,0.00581014,20708.0,20703.0,1.0]
[1674059456047,0.15,20707.0,20706.0,1.0]
[1674059456312,0.15,20707.0,20706.0,1.639582]
[1674059457327,0.15,20707.0,20706.0,1.926982]
[1674059457617,0.1138836,20707.0,20706.0,0.926982]
[1674059457847,0.00681014,20708.0,20707.0,0.38685615]
[1674059458135,0.0053096,20710.0,20707.0,1.52297315]
[1674059458366,0.0053096,20710.0,20709.0,1.4874]
[1674059458633,0.0053096,20710.0,20709.0,1.925925]
[1674059458902,0.0524696,20710.0,20709.0,0.638525]
[1674059459158,0.0524696,20710.0,20709.0,1.338525]
[1674059459159,0.0053096,20710.0,20709.0,1.338525]
[1674059459690,0.0053096,20710.0,20709.0,1.33610454]
[1674059459960,0.0010096,20710.0,20709.0,2.20830454]
[1674059460228,0.00592986,20711.0,20709.0,1.41710454]
[1674059460229,0.00330613,20711.0,20709.0,1.41710454]
[1674059460481,0.00330613,20711.0,20710.0,0.324172]
[1674059460774,0.00330613,20711.0,20709.0,1.0]
[1674059461047,0.001,20710.0,20709.0,1.082]
[1674059461305,0.00330613,20711.0,20709.0,1.321541]
[1674059461597,0.00330613,20711.0,20710.0,0.336755]
[1674059461854,0.00330613,20711.0,20709.0,1.082]
[1674059461855,0.05146613,20711.0,20709.0,1.082]
[1674059462133,0.00430613,20711.0,20709.0,1.082]
[1674059462400,0.00430613,20711.0,20709.0,0.082]
[1674059462657,0.00430613,20711.0,20710.0,0.621249]
[1674059462939,0.00430613,20711.0,20710.0,0.322244]
[1674059463198,0.00330613,20711.0,20709.0,6e-05]
[1674059463729,0.00430613,20711.0,20709.0,1.07606]
[1674059463731,0.00330613,20711.0,20709.0,6e-05]
[1674059463991,0.05146613,20711.0,20710.0,0.076]
[1674059464258,0.05146613,20711.0,20709.0,6e-05]
[1674059464514,0.00530613,20711.0,20710.0,0.15]
[1674059464780,0.00530613,20711.0,20709.0,0.07606]
[1674059464781,0.00330613,20711.0,20709.0,6e-05]
[1674059465048,0.05146613,20711.0,20710.0,0.076]
[1674059465309,0.53331013,20711.0,20707.0,0.09126403]
[1674059465845,0.53331013,20711.0,20703.0,0.15]
[1674059466100,0.04702905,20710.0,20703.0,0.15]
[1674059466398,0.482873,20710.0,20709.0,0.069]
[1674059466659,0.482872,20710.0,20707.0,0.069]
[1674059466934,0.00530613,20711.0,20707.0,0.069]
[1674059467194,0.00330613,20711.0,20707.0,1.0]
[1674059467463,0.002,20710.0,20707.0,1.0]
[1674059467716,0.002,20710.0,20705.0,0.3]
[1674059467981,0.002,20710.0,20704.0,0.3]
[1674059468514,0.002,20710.0,20706.0,1.0]
[1674059468811,0.002,20710.0,20707.0,0.64079]
[1674059469074,0.15,20710.0,20709.0,1.0]
[1674059469341,0.15,20710.0,20709.0,1.631726]
[1674059469910,0.152,20710.0,20709.0,1.631726]
[1674059470738,0.152,20710.0,20709.0,1.86304387]
[1674059471002,0.152,20710.0,20709.0,1.95304387]
[1674059471265,0.00330613,20711.0,20710.0,0.69537375]
[1674059471563,0.00330613,20711.0,20710.0,0.82154275]
[1674059472359,0.05046613,20711.0,20710.0,0.61454275]
[1674059472628,0.05046613,20711.0,20710.0,0.28457375]
[1674059473186,0.00330613,20711.0,20710.0,0.28457375]
[1674059473442,0.05046613,20711.0,20710.0,0.19157375]
[1674059473721,0.05046613,20711.0,20710.0,0.28157375]
[1674059473993,0.05046613,20711.0,20710.0,0.19157375]
[1674059474282,0.00330613,20711.0,20710.0,0.19157375]
[1674059474545,0.05046613,20711.0,20710.0,0.44557375]
[1674059474806,0.00330613,20711.0,20710.0,0.34357375]
[1674059475110,0.00281694,20711.0,20710.0,0.95186975]
[1674059475369,0.00281694,20711.0,20710.0,1.13833941]
[1674059475897,0.00281694,20711.0,20710.0,1.44033941]
[1674059476424,0.00281694,20711.0,20710.0,1.24033941]
[1674059476684,0.00281694,20711.0,20710.0,1.36717399]
[1674059477097,0.00281694,20711.0,20710.0,1.09986975]
[1674059477349,0.00281694,20711.0,20710.0,0.99786975]
[1674059477574,0.0053096,20713.0,20711.0,0.00014498]
[1674059477794,0.0053096,20713.0,20712.0,0.322074]
[1674059478058,0.0053096,20713.0,20711.0,0.00014498]
[1674059478508,0.0063096,20713.0,20711.0,0.08414498]
[1674059478727,0.0053096,20713.0,20711.0,0.00014498]
[1674059479189,0.0063096,20713.0,20711.0,0.08414498]
[1674059479881,0.0063096,20713.0,20712.0,1.530966]
[1674059480103,0.0063096,20713.0,20712.0,1.330966]
[1674059480804,0.0053096,20713.0,20712.0,1.630966]
[1674059481020,0.0063096,20713.0,20712.0,1.714966]
[1674059481704,0.0063096,20713.0,20712.0,1.914966]
[1674059482823,0.0063096,20713.0,20712.0,2.418766]
[1674059483025,0.0063096,20713.0,20712.0,1.914966]
[1674059483236,0.0063096,20713.0,20712.0,1.414966]
[1674059483605,0.0063096,20713.0,20712.0,1.6839405]
[1674059483864,0.0063096,20713.0,20712.0,1.414966]
[1674059484733,0.0063096,20713.0,20712.0,1.554766]
[1674059484932,0.0063096,20713.0,20712.0,2.09965468]
[1674059485187,0.0063096,20713.0,20712.0,2.377601]
[1674059485447,0.00589064,20717.0,20713.0,0.00174521]
[1674059485704,0.00589064,20717.0,20716.0,1.0]
[1674059485999,0.00589064,20717.0,20716.0,1.628295]
[1674059486214,0.00589064,20717.0,20716.0,1.3]
[1674059486800,0.10589064,20718.0,20716.0,1.3]
[1674059487034,0.00621969,20719.0,20717.0,0.3]
[1674059488096,0.00621969,20719.0,20717.0,0.392]
[1674059488354,0.00621969,20719.0,20718.0,0.2]
[1674059488626,0.00621969,20719.0,20718.0,0.325093]
[1674059488893,0.07191366,20720.0,20718.0,0.964893]
[1674059489150,0.07191366,20720.0,20719.0,1.305238]
[1674059489438,0.07191366,20720.0,20719.0,2.68955652]
[1674059489691,0.07185366,20720.0,20719.0,2.72087439]
[1674059490030,0.00610672,20722.0,20719.0,2.72087439]
[1674059490278,0.00610672,20722.0,20721.0,0.8436]
[1674059490527,0.00610672,20722.0,20721.0,1.477641]
[1674059491039,0.00610672,20722.0,20721.0,1.337841]
[1674059491300,0.00610672,20722.0,20721.0,0.926041]
[1674059491548,0.00610672,20722.0,20721.0,1.429841]
[1674059491788,0.00540955,20727.0,20721.0,1.568541]
[1674059492041,0.00540955,20727.0,20726.0,1.0]
[1674059492283,0.00540955,20727.0,20723.0,1.0]
[1674059492534,0.00534955,20727.0,20724.0,0.3]
[1674059492776,0.00534955,20727.0,20726.0,1.0]
[1674059493029,0.00534955,20727.0,20726.0,1.3]
[1674059494021,0.05250955,20727.0,20721.0,1.33032406]
[1674059494264,0.00534955,20727.0,20724.0,1.0]
[1674059494507,0.53497755,20727.0,20726.0,0.092]
[1674059494782,1.50040235,20727.0,20726.0,0.092]
[1674059495121,1.50040235,20727.0,20719.0,0.4804888]
[1674059495312,0.9654248,20726.0,20724.0,0.085]
[1674059495557,0.482509,20725.0,20724.0,0.085]
[1674059495799,0.48881755,20727.0,20724.0,0.085]
[1674059496039,0.00534955,20727.0,20724.0,1.0]
[1674059496282,0.15,20725.0,20724.0,1.0]
[1674059496528,0.482509,20725.0,20721.0,1.0]
[1674059496765,0.965018,20725.0,20718.0,1.0]
[1674059497263,0.965018,20725.0,20721.0,0.15]
[1674059497505,0.482509,20725.0,20718.0,1.2]
[1674059497748,0.621309,20725.0,20718.0,1.0]
[1674059498477,0.632509,20725.0,20721.0,1.0]
[1674059498717,1.23314955,20727.0,20724.0,1.0]
[1674059499045,0.001,20725.0,20724.0,1.0]
[1674059499305,0.001,20725.0,20724.0,1.2]
[1674059499569,0.00534955,20727.0,20724.0,1.516285]
[1674059499823,0.00534955,20727.0,20725.0,0.3]
[1674059500839,0.00534955,20727.0,20726.0,0.319908]
[1674059501096,0.00534955,20727.0,20726.0,0.619908]
[1674059501598,0.00534955,20727.0,20726.0,0.3]
[1674059502114,0.00534955,20727.0,20726.0,0.615359]
[1674059502371,0.05250955,20727.0,20726.0,0.091]
[1674059502619,0.53498655,20727.0,20721.0,0.15]
[1674059502886,0.1398,20726.0,20720.0,0.65]
[1674059503142,0.965047,20725.0,20720.0,0.65]
[1674059503394,0.965047,20725.0,20720.0,0.5]
[1674059503650,0.965047,20725.0,20721.0,1.0]
[1674059503651,0.48252,20725.0,20721.0,1.0]
[1674059503944,1.73398655,20727.0,20721.0,1.0]
[1674059504195,0.15,20724.0,20720.0,0.5]
[1674059504444,0.15,20724.0,20723.0,1.2]
[1674059504746,0.15,20724.0,20723.0,1.842408]